[Event "Titled Tuesday Blitz June 21 Early 2022"]
[White "Joubert, Dantelle"]
[Black "Cramling Bellon, Anna"]
[WhiteFideId "14310813"]
[BlackFideId "32009232"]
[WhiteElo "1507"]
[BlackElo "1905"]
[Result "0-1"]
[Round "10"]
[TimeControl "180+1"]
[Date "2022.06.22"]
[WhiteClock "0:00:04"]
[BlackClock "0:00:05"]

1. e4 {[%clk 0:03:00]}  c5 {[%clk 0:02:56]} 2. Nf3 {[%clk 0:02:59]}  e6 {[%clk 0:02:54]} 3. c3 {[%clk 0:02:57]}  Nf6 {[%clk 0:02:54]} 4. Bd3 {[%clk 0:02:41]}  c4 {[%clk 0:02:44]} 5. Bc2 {[%clk 0:02:38]}  d5 {[%clk 0:02:43]} 6. e5 {[%clk 0:02:31]}  Nfd7 {[%clk 0:02:42]} 7. O-O {[%clk 0:02:30]}  Nc6 {[%clk 0:02:42]} 8. Qe2 {[%clk 0:02:27]}  Be7 {[%clk 0:02:33]} 9. b3 {[%clk 0:02:25]}  b5 {[%clk 0:02:27]} 10. a4 {[%clk 0:02:24]}  Ba6 {[%clk 0:02:10]} 11. axb5 {[%clk 0:02:11]}  Bxb5 {[%clk 0:02:10]} 12. bxc4 {[%clk 0:02:11]}  Bxc4 {[%clk 0:02:04]} 13. d3 {[%clk 0:02:10]}  Bb5 {[%clk 0:01:55]} 14. c4 {[%clk 0:02:10]}  dxc4 {[%clk 0:01:45]} 15. dxc4 {[%clk 0:02:09]}  Ndxe5 {[%clk 0:00:57]} 16. cxb5 {[%clk 0:02:04]}  Nxf3+ {[%clk 0:00:46]} 17. Qxf3 {[%clk 0:02:02]}  Nd4 {[%clk 0:00:45]} 18. Qd3 {[%clk 0:01:51]}  Bf6 {[%clk 0:00:39]} 19. Ba4 {[%clk 0:01:24]}  O-O {[%clk 0:00:27]} 20. Bb2 {[%clk 0:01:19]}  Nf3+ {[%clk 0:00:20]} 21. Qxf3 {[%clk 0:01:16]}  Bxb2 {[%clk 0:00:20]} 22. Ra2 {[%clk 0:01:15]}  Be5 {[%clk 0:00:19]} 23. Rd2 {[%clk 0:01:06]}  Qh4 {[%clk 0:00:16]} 24. g3 {[%clk 0:01:06]}  Qxa4 {[%clk 0:00:16]} 25. Qe2 {[%clk 0:00:54]}  Bf6 {[%clk 0:00:13]} 26. Rfd1 {[%clk 0:00:53]}  Rab8 {[%clk 0:00:12]} 27. Rd7 {[%clk 0:00:46]}  Qxb5 {[%clk 0:00:10]} 28. Qxb5 {[%clk 0:00:44]}  Rxb5 {[%clk 0:00:11]} 29. Rxa7 {[%clk 0:00:43]}  Rfb8 {[%clk 0:00:08]} 30. Na3 {[%clk 0:00:43]}  Rb3 {[%clk 0:00:06]} 31. Nc4 {[%clk 0:00:42]}  g6 {[%clk 0:00:06]} 32. Nd6 {[%clk 0:00:41]}  Rd8 {[%clk 0:00:04]} 33. Rd2 {[%clk 0:00:29]}  Rb1+ {[%clk 0:00:04]} 34. Kg2 {[%clk 0:00:29]}  Rb6 {[%clk 0:00:05]} 35. Ne4 {[%clk 0:00:29]}  Rxd2 {[%clk 0:00:04]} 36. Nxd2 {[%clk 0:00:29]}  Rb2 {[%clk 0:00:04]} 37. Ne4 {[%clk 0:00:29]}  Bd4 {[%clk 0:00:04]} 38. Ra8+ {[%clk 0:00:25]}  Kg7 {[%clk 0:00:04]} 39. Rd8 {[%clk 0:00:25]}  e5 {[%clk 0:00:04]} 40. Rd7 {[%clk 0:00:24]}  Kf8 {[%clk 0:00:02]} 41. Nd6 {[%clk 0:00:24]}  Rxf2+ {[%clk 0:00:02]} 42. Kh3 {[%clk 0:00:22]}  h5 {[%clk 0:00:02]} 43. Nb5 {[%clk 0:00:21]}  Rf6 {[%clk 0:00:02]} 44. Nxd4 {[%clk 0:00:20]}  exd4 {[%clk 0:00:03]} 45. Rxd4 {[%clk 0:00:21]}  Kg7 {[%clk 0:00:03]} 46. Kg2 {[%clk 0:00:21]}  g5 {[%clk 0:00:03]} 47. h3 {[%clk 0:00:21]}  Kg6 {[%clk 0:00:04]} 48. Rd5 {[%clk 0:00:21]}  Re6 {[%clk 0:00:04]} 49. Rc5 {[%clk 0:00:21]}  Re2+ {[%clk 0:00:04]} 50. Kf3 {[%clk 0:00:18]}  Rb2 {[%clk 0:00:04]} 51. h4 {[%clk 0:00:17]}  Rb3+ {[%clk 0:00:04]} 52. Kg2 {[%clk 0:00:18]}  gxh4 {[%clk 0:00:04]} 53. gxh4 {[%clk 0:00:17]}  Rb4 {[%clk 0:00:03]} 54. Rg5+ {[%clk 0:00:17]}  Kh6 {[%clk 0:00:03]} 55. Kh3 {[%clk 0:00:17]}  Rb3+ {[%clk 0:00:03]} 56. Kg2 {[%clk 0:00:17]}  f6 {[%clk 0:00:03]} 57. Ra5 {[%clk 0:00:15]}  Kg6 {[%clk 0:00:03]} 58. Kh2 {[%clk 0:00:15]}  Rc3 {[%clk 0:00:03]} 59. Kg2 {[%clk 0:00:15]}  Re3 {[%clk 0:00:02]} 60. Kh2 {[%clk 0:00:15]}  Re5 {[%clk 0:00:03]} 61. Ra4 {[%clk 0:00:14]}  Kf5 {[%clk 0:00:03]} 62. Kg3 {[%clk 0:00:14]}  Re4 {[%clk 0:00:03]} 63. Ra5+ {[%clk 0:00:14]}  Re5 {[%clk 0:00:03]} 64. Ra4 {[%clk 0:00:14]}  Kg6 {[%clk 0:00:03]} 65. Rg4+ {[%clk 0:00:14]}  Kf5 {[%clk 0:00:02]} 66. Rf4+ {[%clk 0:00:14]}  Ke6 {[%clk 0:00:03]} 67. Rf1 {[%clk 0:00:13]}  Re3+ {[%clk 0:00:03]} 68. Kf4 {[%clk 0:00:13]}  Ra3 {[%clk 0:00:03]} 69. Rg1 {[%clk 0:00:13]}  Ra4+ {[%clk 0:00:03]} 70. Kf3 {[%clk 0:00:12]}  Rxh4 {[%clk 0:00:02]} 71. Rg8 {[%clk 0:00:10]}  Kf5 {[%clk 0:00:02]} 72. Kg3 {[%clk 0:00:10]}  Rg4+ {[%clk 0:00:02]} 73. Rxg4 {[%clk 0:00:10]}  hxg4 {[%clk 0:00:03]} 74. Kf2 {[%clk 0:00:10]}  Kf4 {[%clk 0:00:04]} 75. Kg2 {[%clk 0:00:10]}  g3 {[%clk 0:00:04]} 76. Kg1 {[%clk 0:00:10]}  Kf3 {[%clk 0:00:04]} 77. Kf1 {[%clk 0:00:10]}  f5 {[%clk 0:00:04]} 78. Kg1 {[%clk 0:00:10]}  f4 {[%clk 0:00:04]} 79. Kf1 {[%clk 0:00:10]}  Kg4 {[%clk 0:00:05]} 80. Kg2 {[%clk 0:00:11]}  f3+ {[%clk 0:00:05]} 81. Kf1 {[%clk 0:00:11]}  Kh3 {[%clk 0:00:05]} 82. Kg1 {[%clk 0:00:11]}  f2+ {[%clk 0:00:05]} 83. Kf1 {[%clk 0:00:12]}  g2+ {[%clk 0:00:04]} 84. Kxf2 {[%clk 0:00:12]}  Kh2 {[%clk 0:00:05]} 85. Kf3 {[%clk 0:00:11]}  g1=Q {[%clk 0:00:06]} 86. Kf4 {[%clk 0:00:11]}  Qd4+ {[%clk 0:00:06]} 87. Kf5 {[%clk 0:00:11]}  Kg3 {[%clk 0:00:07]} 88. Ke6 {[%clk 0:00:11]}  Kg4 {[%clk 0:00:07]} 89. Ke7 {[%clk 0:00:10]}  Kf5 {[%clk 0:00:07]} 90. Kf7 {[%clk 0:00:10]}  Qd6 {[%clk 0:00:07]} 91. Ke8 {[%clk 0:00:10]}  Qe6+ {[%clk 0:00:06]} 92. Kd8 {[%clk 0:00:09]}  Qf6+ {[%clk 0:00:05]} 93. Kc8 {[%clk 0:00:09]}  Ke6 {[%clk 0:00:05]} 94. Kb7 {[%clk 0:00:09]}  Kd5 {[%clk 0:00:05]} 95. Kc7 {[%clk 0:00:09]}  Qd6+ {[%clk 0:00:05]} 96. Kc8 {[%clk 0:00:08]}  Qe6+ {[%clk 0:00:05]} 97. Kc7 {[%clk 0:00:08]}  Qc6+ {[%clk 0:00:05]} 98. Kd8 {[%clk 0:00:07]}  Qb6+ {[%clk 0:00:03]} 99. Ke7 {[%clk 0:00:07]}  Qc7+ {[%clk 0:00:02]} 100. Kf6 {[%clk 0:00:07]}  Qd6+ {[%clk 0:00:02]} 101. Kf5 {[%clk 0:00:08]}  Qe6+ {[%clk 0:00:03]} 102. Kf4 {[%clk 0:00:07]}  Qe4+ {[%clk 0:00:03]} 103. Kg5 {[%clk 0:00:07]}  Ke5 {[%clk 0:00:03]} 104. Kh5 {[%clk 0:00:05]}  Qf4 {[%clk 0:00:03]} 105. Kg6 {[%clk 0:00:05]}  Qf5+ {[%clk 0:00:03]} 106. Kg7 {[%clk 0:00:05]}  Ke6 {[%clk 0:00:03]} 107. Kg8 {[%clk 0:00:04]}  Qf7+ {[%clk 0:00:02]} 108. Kh8 {[%clk 0:00:04]}  Qe7 {[%clk 0:00:03]} 109. Kg8 {[%clk 0:00:04]}  Kf6 {[%clk 0:00:04]} 110. Kh8 {[%clk 0:00:04]}  Qg7# {[%clk 0:00:05]} 0-1


[Site "https://www.chess.com"]

[Event "Titled Tuesday Blitz June 21 Early 2022"]
[White "Kopczynski, Michal"]
[Black "Polster, Christian"]
[WhiteFideId "1124200"]
[BlackFideId "12965081"]
[WhiteElo "2235"]
[BlackElo "2287"]
[Result "1-0"]
[Round "10"]
[TimeControl "180+1"]
[Date "2022.06.22"]
[WhiteClock "0:00:58"]
[BlackClock "0:00:11"]

1. e4 {[%clk 0:02:56]}  c5 {[%clk 0:02:50]} 2. d4 {[%clk 0:02:56]}  cxd4 {[%clk 0:02:51]} 3. c3 {[%clk 0:02:56]}  dxc3 {[%clk 0:02:51]} 4. Nxc3 {[%clk 0:02:57]}  e6 {[%clk 0:02:44]} 5. f4 {[%clk 0:02:58]}  Qc7 {[%clk 0:02:38]} 6. Nf3 {[%clk 0:02:58]}  a6 {[%clk 0:02:38]} 7. Bd3 {[%clk 0:02:58]}  Nc6 {[%clk 0:02:33]} 8. O-O {[%clk 0:02:58]}  b5 {[%clk 0:02:33]} 9. Kh1 {[%clk 0:02:58]}  Bb7 {[%clk 0:02:31]} 10. Be3 {[%clk 0:02:58]}  d6 {[%clk 0:02:24]} 11. Rc1 {[%clk 0:02:59]}  Rc8 {[%clk 0:02:19]} 12. Qe1 {[%clk 0:02:59]}  Qb8 {[%clk 0:02:17]} 13. Qg3 {[%clk 0:02:57]}  Nf6 {[%clk 0:02:16]} 14. e5 {[%clk 0:02:54]}  Nh5 {[%clk 0:02:11]} 15. Qh3 {[%clk 0:02:49]}  g6 {[%clk 0:02:06]} 16. Ne4 {[%clk 0:02:41]}  d5 {[%clk 0:02:00]} 17. Nc5 {[%clk 0:02:31]}  Ng7 {[%clk 0:01:52]} 18. Nd4 {[%clk 0:02:13]}  Nb4 {[%clk 0:01:36]} 19. Ndxe6 {[%clk 0:01:29]}  fxe6 {[%clk 0:01:19]} 20. Nxe6 {[%clk 0:01:29]}  Nxd3 {[%clk 0:01:16]} 21. Nxg7+ {[%clk 0:01:29]}  Bxg7 {[%clk 0:01:17]} 22. Qe6+ {[%clk 0:01:24]}  Kf8 {[%clk 0:01:16]} 23. f5 {[%clk 0:01:20]}  Rxc1 {[%clk 0:01:08]} 24. Bxc1 {[%clk 0:01:20]}  Bxe5 {[%clk 0:00:17]} 25. fxg6+ {[%clk 0:00:58]}  Bf4 {[%clk 0:00:11]} 26. Qf7# {[%clk 0:00:58]} 1-0


[Site "https://www.chess.com"]

[Event "Titled Tuesday Blitz June 21 Early 2022"]
[White "Korchmar, Vasiliy"]
[Black "Bilych, Olexiy"]
[WhiteFideId "24131750"]
[BlackFideId "14156504"]
[WhiteElo "2370"]
[BlackElo "2189"]
[Result "1-0"]
[Round "10"]
[TimeControl "180+1"]
[Date "2022.06.21"]
[WhiteClock "0:01:28"]
[BlackClock "0:00:17"]

1. e4 {[%clk 0:03:00]}  e5 {[%clk 0:02:59]} 2. Nf3 {[%clk 0:02:59]}  Nc6 {[%clk 0:03:00]} 3. Nc3 {[%clk 0:02:59]}  Nf6 {[%clk 0:03:00]} 4. h3 {[%clk 0:03:00]}  d5 {[%clk 0:02:58]} 5. exd5 {[%clk 0:03:00]}  Nxd5 {[%clk 0:02:59]} 6. Bb5 {[%clk 0:03:00]}  Nxc3 {[%clk 0:02:59]} 7. bxc3 {[%clk 0:03:01]}  Bd6 {[%clk 0:02:59]} 8. d4 {[%clk 0:03:02]}  exd4 {[%clk 0:02:56]} 9. O-O {[%clk 0:03:02]}  O-O {[%clk 0:02:55]} 10. cxd4 {[%clk 0:03:03]}  Qf6 {[%clk 0:02:38]} 11. c4 {[%clk 0:03:02]}  Bf5 {[%clk 0:02:34]} 12. Bxc6 {[%clk 0:02:56]}  bxc6 {[%clk 0:02:34]} 13. c5 {[%clk 0:02:56]}  Bxc5 {[%clk 0:01:56]} 14. Bg5 {[%clk 0:02:54]}  Qg6 {[%clk 0:01:56]} 15. dxc5 {[%clk 0:02:53]}  h6 {[%clk 0:01:56]} 16. Be3 {[%clk 0:02:19]}  Bxh3 {[%clk 0:01:53]} 17. Nh4 {[%clk 0:02:20]}  Qf6 {[%clk 0:01:45]} 18. Qd4 {[%clk 0:02:16]}  Qxd4 {[%clk 0:01:39]} 19. Bxd4 {[%clk 0:02:17]}  Be6 {[%clk 0:01:39]} 20. Nf3 {[%clk 0:02:14]}  Rfd8 {[%clk 0:01:32]} 21. Be3 {[%clk 0:02:12]}  Rab8 {[%clk 0:01:28]} 22. Rfb1 {[%clk 0:02:08]}  Rxb1+ {[%clk 0:01:17]} 23. Rxb1 {[%clk 0:02:09]}  Bxa2 {[%clk 0:01:17]} 24. Ra1 {[%clk 0:02:08]}  Bd5 {[%clk 0:01:12]} 25. Rxa7 {[%clk 0:02:09]}  Bxf3 {[%clk 0:01:01]} 26. gxf3 {[%clk 0:02:10]}  Rd7 {[%clk 0:01:01]} 27. Ra6 {[%clk 0:02:06]}  g5 {[%clk 0:00:46]} 28. Rxc6 {[%clk 0:02:06]}  Kg7 {[%clk 0:00:47]} 29. Kg2 {[%clk 0:02:03]}  f6 {[%clk 0:00:46]} 30. Bc1 {[%clk 0:02:01]}  Kg6 {[%clk 0:00:45]} 31. Bb2 {[%clk 0:02:01]}  Rf7 {[%clk 0:00:45]} 32. Bc3 {[%clk 0:02:01]}  Kf5 {[%clk 0:00:45]} 33. Ba5 {[%clk 0:02:01]}  Rd7 {[%clk 0:00:38]} 34. Bxc7 {[%clk 0:01:58]}  h5 {[%clk 0:00:37]} 35. Bd6 {[%clk 0:01:56]}  h4 {[%clk 0:00:37]} 36. Rc7 {[%clk 0:01:55]}  Rd8 {[%clk 0:00:37]} 37. Ra7 {[%clk 0:01:46]}  Ke6 {[%clk 0:00:28]} 38. Kh3 {[%clk 0:01:44]}  Re8 {[%clk 0:00:23]} 39. f4 {[%clk 0:01:43]}  Kf5 {[%clk 0:00:21]} 40. fxg5 {[%clk 0:01:42]}  fxg5 {[%clk 0:00:22]} 41. Re7 {[%clk 0:01:39]}  Ra8 {[%clk 0:00:20]} 42. Re5+ {[%clk 0:01:38]}  Kg6 {[%clk 0:00:20]} 43. Re6+ {[%clk 0:01:37]}  Kf5 {[%clk 0:00:20]} 44. Re5+ {[%clk 0:01:37]}  Kg6 {[%clk 0:00:20]} 45. Re3 {[%clk 0:01:32]}  Kh5 {[%clk 0:00:19]} 46. Rc3 {[%clk 0:01:31]}  Ra1 {[%clk 0:00:17]} 47. Kg2 {[%clk 0:01:29]}  g4 {[%clk 0:00:16]} 48. c6 {[%clk 0:01:28]}  h3+ {[%clk 0:00:17]} 49. Kh2 {[%clk 0:01:28]}  Rf1 {[%clk 0:00:17]} 50. Bg3 {[%clk 0:01:28]} 1-0


[Site "https://www.chess.com"]

[Event "Titled Tuesday Blitz June 21 Early 2022"]
[White "Kozelov, Roman"]
[Black "Thiel, Thomas"]
[WhiteFideId "14133377"]
[BlackFideId "4615964"]
[WhiteElo "2149"]
[BlackElo "2242"]
[Result "1-0"]
[Round "10"]
[TimeControl "180+1"]
[Date "2022.06.22"]
[WhiteClock "0:01:18"]
[BlackClock "0:00:12"]

1. e4 {[%clk 0:03:00]}  d5 {[%clk 0:02:58]} 2. exd5 {[%clk 0:03:00]}  Nf6 {[%clk 0:02:58]} 3. Nc3 {[%clk 0:03:00]}  Nxd5 {[%clk 0:02:57]} 4. Bc4 {[%clk 0:03:01]}  Nb6 {[%clk 0:02:56]} 5. Bb3 {[%clk 0:03:00]}  g6 {[%clk 0:02:56]} 6. Qf3 {[%clk 0:02:59]}  e6 {[%clk 0:02:55]} 7. d3 {[%clk 0:02:58]}  Bg7 {[%clk 0:02:55]} 8. Nge2 {[%clk 0:02:57]}  Nc6 {[%clk 0:02:54]} 9. O-O {[%clk 0:02:55]}  O-O {[%clk 0:02:52]} 10. Qg3 {[%clk 0:02:53]}  a5 {[%clk 0:02:41]} 11. a3 {[%clk 0:02:53]}  a4 {[%clk 0:02:40]} 12. Ba2 {[%clk 0:02:52]}  Nd5 {[%clk 0:02:18]} 13. Nxd5 {[%clk 0:02:49]}  exd5 {[%clk 0:02:15]} 14. Bg5 {[%clk 0:02:48]}  Qd6 {[%clk 0:02:11]} 15. Bf4 {[%clk 0:02:48]}  Be5 {[%clk 0:01:59]} 16. Bxe5 {[%clk 0:02:40]}  Nxe5 {[%clk 0:02:00]} 17. f4 {[%clk 0:02:26]}  Nd7 {[%clk 0:01:45]} 18. f5 {[%clk 0:02:13]}  Qxg3 {[%clk 0:01:44]} 19. Nxg3 {[%clk 0:02:12]}  c6 {[%clk 0:01:44]} 20. d4 {[%clk 0:02:11]}  Nf6 {[%clk 0:01:41]} 21. Rae1 {[%clk 0:02:09]}  Bd7 {[%clk 0:01:22]} 22. fxg6 {[%clk 0:01:57]}  fxg6 {[%clk 0:01:20]} 23. c4 {[%clk 0:01:53]}  Rae8 {[%clk 0:01:12]} 24. Re5 {[%clk 0:01:46]}  Kg7 {[%clk 0:01:01]} 25. cxd5 {[%clk 0:01:40]}  Rxe5 {[%clk 0:00:59]} 26. dxe5 {[%clk 0:01:39]}  Nxd5 {[%clk 0:00:58]} 27. Rxf8 {[%clk 0:01:38]}  Kxf8 {[%clk 0:00:56]} 28. Bxd5 {[%clk 0:01:38]}  cxd5 {[%clk 0:00:55]} 29. Kf2 {[%clk 0:01:38]}  d4 {[%clk 0:00:40]} 30. Ne2 {[%clk 0:01:37]}  d3 {[%clk 0:00:35]} 31. Nf4 {[%clk 0:01:36]}  d2 {[%clk 0:00:27]} 32. Ke2 {[%clk 0:01:36]}  Bc6 {[%clk 0:00:27]} 33. g3 {[%clk 0:01:29]}  Ke7 {[%clk 0:00:27]} 34. Kxd2 {[%clk 0:01:29]}  b5 {[%clk 0:00:25]} 35. Ke3 {[%clk 0:01:28]}  g5 {[%clk 0:00:23]} 36. Nd3 {[%clk 0:01:24]}  Ke6 {[%clk 0:00:23]} 37. Kd4 {[%clk 0:01:24]}  Be8 {[%clk 0:00:16]} 38. Nc5+ {[%clk 0:01:20]}  Kf5 {[%clk 0:00:16]} 39. Nb7 {[%clk 0:01:19]}  Bf7 {[%clk 0:00:12]} 40. Nd6+ {[%clk 0:01:18]} 1-0


[Site "https://www.chess.com"]

[Event "Titled Tuesday Blitz June 21 Early 2022"]
[White "Kvaloy, Aksel Bu"]
[Black "Orlov, Georgi"]
[WhiteFideId "1528815"]
[BlackFideId "2011271"]
[WhiteElo "2006"]
[BlackElo "2492"]
[Result "0-1"]
[Round "10"]
[TimeControl "180+1"]
[Date "2022.06.22"]
[WhiteClock "0:00:06"]
[BlackClock "0:00:16"]

1. e4 {[%clk 0:03:00]}  e6 {[%clk 0:02:59]} 2. d4 {[%clk 0:02:59]}  d5 {[%clk 0:02:59]} 3. Nd2 {[%clk 0:02:59]}  Be7 {[%clk 0:02:58]} 4. Ngf3 {[%clk 0:02:58]}  Nf6 {[%clk 0:02:56]} 5. e5 {[%clk 0:02:58]}  Nfd7 {[%clk 0:02:55]} 6. Bd3 {[%clk 0:02:59]}  c5 {[%clk 0:02:55]} 7. c3 {[%clk 0:02:59]}  Nc6 {[%clk 0:02:55]} 8. O-O {[%clk 0:02:59]}  Qb6 {[%clk 0:02:53]} 9. a3 {[%clk 0:02:48]}  cxd4 {[%clk 0:02:52]} 10. cxd4 {[%clk 0:02:48]}  Nxd4 {[%clk 0:02:52]} 11. Nxd4 {[%clk 0:02:49]}  Qxd4 {[%clk 0:02:51]} 12. Nf3 {[%clk 0:02:49]}  Qb6 {[%clk 0:02:45]} 13. b4 {[%clk 0:02:49]}  a5 {[%clk 0:02:43]} 14. Be3 {[%clk 0:02:46]}  Qd8 {[%clk 0:02:43]} 15. Qa4 {[%clk 0:02:38]}  O-O {[%clk 0:02:37]} 16. Rac1 {[%clk 0:02:37]}  Nb6 {[%clk 0:01:42]} 17. Qb5 {[%clk 0:02:33]}  Nc4 {[%clk 0:01:42]} 18. Bxc4 {[%clk 0:02:32]}  dxc4 {[%clk 0:01:42]} 19. Rfd1 {[%clk 0:02:32]}  Qe8 {[%clk 0:01:42]} 20. Qxe8 {[%clk 0:02:32]}  Rxe8 {[%clk 0:01:42]} 21. Rxc4 {[%clk 0:02:33]}  axb4 {[%clk 0:01:42]} 22. axb4 {[%clk 0:02:33]}  b5 {[%clk 0:01:41]} 23. Rg4 {[%clk 0:02:12]}  Bb7 {[%clk 0:01:34]} 24. Nd4 {[%clk 0:02:11]}  h5 {[%clk 0:01:26]} 25. Rg3 {[%clk 0:01:47]}  Bxb4 {[%clk 0:01:14]} 26. Nxb5 {[%clk 0:01:44]}  Red8 {[%clk 0:01:13]} 27. Nd6 {[%clk 0:01:40]}  Be4 {[%clk 0:01:06]} 28. h4 {[%clk 0:01:34]}  Bg6 {[%clk 0:01:02]} 29. Bg5 {[%clk 0:01:26]}  Rd7 {[%clk 0:01:00]} 30. Re3 {[%clk 0:01:07]}  Ra2 {[%clk 0:00:51]} 31. Kf1 {[%clk 0:01:03]}  Bc5 {[%clk 0:00:47]} 32. Re2 {[%clk 0:01:03]}  Rda7 {[%clk 0:00:41]} 33. Red2 {[%clk 0:00:45]}  Rxd2 {[%clk 0:00:40]} 34. Rxd2 {[%clk 0:00:45]}  Ra1+ {[%clk 0:00:39]} 35. Ke2 {[%clk 0:00:45]}  Ra4 {[%clk 0:00:36]} 36. f3 {[%clk 0:00:37]}  Bb4 {[%clk 0:00:33]} 37. Rb2 {[%clk 0:00:32]}  Bc3 {[%clk 0:00:33]} 38. Rb8+ {[%clk 0:00:31]}  Kh7 {[%clk 0:00:33]} 39. f4 {[%clk 0:00:29]}  Ra2+ {[%clk 0:00:33]} 40. Kf3 {[%clk 0:00:29]}  Bd4 {[%clk 0:00:24]} 41. Ne8 {[%clk 0:00:26]}  Ra3+ {[%clk 0:00:24]} 42. Ke2 {[%clk 0:00:25]}  Bd3+ {[%clk 0:00:20]} 43. Kd2 {[%clk 0:00:25]}  Be4 {[%clk 0:00:19]} 44. Bf6 {[%clk 0:00:18]}  Ra2+ {[%clk 0:00:19]} 45. Ke1 {[%clk 0:00:07]}  Bc3+ {[%clk 0:00:18]} 46. Kd1 {[%clk 0:00:06]}  Bd3 {[%clk 0:00:16]} 0-1


[Site "https://www.chess.com"]

[Event "Titled Tuesday Blitz June 21 Early 2022"]
[White "Leve, Nitai"]
[Black "Shuvalova, Polina"]
[WhiteFideId "2006898"]
[BlackFideId "24171760"]
[WhiteElo "2144"]
[BlackElo "2330"]
[Result "0-1"]
[Round "10"]
[TimeControl "180+1"]
[Date "2022.06.22"]
[WhiteClock "0:00:05"]
[BlackClock "0:00:08"]

1. d4 {[%clk 0:02:59]}  Nf6 {[%clk 0:02:59]} 2. c4 {[%clk 0:02:55]}  e6 {[%clk 0:02:58]} 3. Nc3 {[%clk 0:02:55]}  Bb4 {[%clk 0:02:56]} 4. Qc2 {[%clk 0:02:54]}  c5 {[%clk 0:02:52]} 5. e3 {[%clk 0:02:50]}  cxd4 {[%clk 0:02:51]} 6. exd4 {[%clk 0:02:51]}  O-O {[%clk 0:02:52]} 7. Bd3 {[%clk 0:02:47]}  d5 {[%clk 0:02:51]} 8. cxd5 {[%clk 0:02:42]}  exd5 {[%clk 0:02:47]} 9. Ne2 {[%clk 0:02:41]}  Nc6 {[%clk 0:02:47]} 10. a3 {[%clk 0:02:40]}  Bd6 {[%clk 0:02:45]} 11. O-O {[%clk 0:02:35]}  h6 {[%clk 0:02:45]} 12. h3 {[%clk 0:02:29]}  Re8 {[%clk 0:02:25]} 13. b4 {[%clk 0:02:27]}  Be6 {[%clk 0:02:21]} 14. b5 {[%clk 0:02:22]}  Na5 {[%clk 0:02:19]} 15. Bf4 {[%clk 0:02:21]}  Rc8 {[%clk 0:02:18]} 16. Rac1 {[%clk 0:02:08]}  Nc4 {[%clk 0:02:17]} 17. a4 {[%clk 0:02:03]}  b6 {[%clk 0:02:15]} 18. Rfe1 {[%clk 0:01:55]}  Qc7 {[%clk 0:02:08]} 19. Bxd6 {[%clk 0:01:54]}  Qxd6 {[%clk 0:02:09]} 20. Ng3 {[%clk 0:01:52]}  Bd7 {[%clk 0:02:07]} 21. Rxe8+ {[%clk 0:01:49]}  Rxe8 {[%clk 0:02:06]} 22. Nxd5 {[%clk 0:01:47]}  Qxd5 {[%clk 0:01:53]} 23. Qxc4 {[%clk 0:01:44]}  Qd6 {[%clk 0:01:45]} 24. Bf5 {[%clk 0:01:25]}  g6 {[%clk 0:01:39]} 25. Bxg6 {[%clk 0:01:14]}  Be6 {[%clk 0:01:14]} 26. Nf5 {[%clk 0:00:44]}  Qf4 {[%clk 0:01:04]} 27. d5 {[%clk 0:00:30]}  Qxc4 {[%clk 0:00:57]} 28. Rxc4 {[%clk 0:00:29]}  Bxd5 {[%clk 0:00:46]} 29. Bxf7+ {[%clk 0:00:18]}  Kxf7 {[%clk 0:00:36]} 30. Rc7+ {[%clk 0:00:15]}  Kg6 {[%clk 0:00:18]} 31. Ne3 {[%clk 0:00:15]}  Bf7 {[%clk 0:00:17]} 32. Rxa7 {[%clk 0:00:15]}  Re4 {[%clk 0:00:14]} 33. Rb7 {[%clk 0:00:13]}  Rxa4 {[%clk 0:00:12]} 34. Rxb6 {[%clk 0:00:13]}  Kg7 {[%clk 0:00:12]} 35. g4 {[%clk 0:00:11]}  Ne4 {[%clk 0:00:11]} 36. Rb7 {[%clk 0:00:09]}  Ra1+ {[%clk 0:00:10]} 37. Kg2 {[%clk 0:00:08]}  Ra2 {[%clk 0:00:09]} 38. Kf3 {[%clk 0:00:07]}  Ng5+ {[%clk 0:00:07]} 39. Kg3 {[%clk 0:00:06]}  Ne4+ {[%clk 0:00:06]} 40. Kf4 {[%clk 0:00:05]}  Nd6 {[%clk 0:00:05]} 41. Rd7 {[%clk 0:00:03]}  Nxb5 {[%clk 0:00:05]} 42. Nf5+ {[%clk 0:00:03]}  Kf6 {[%clk 0:00:05]} 43. h4 {[%clk 0:00:03]}  Rxf2+ {[%clk 0:00:05]} 44. Kg3 {[%clk 0:00:03]}  Rf1 {[%clk 0:00:05]} 45. Ne3 {[%clk 0:00:02]}  Re1 {[%clk 0:00:04]} 46. Kf2 {[%clk 0:00:03]}  Ra1 {[%clk 0:00:04]} 47. Rb7 {[%clk 0:00:03]}  Nd4 {[%clk 0:00:04]} 48. Rb6+ {[%clk 0:00:03]}  Kg7 {[%clk 0:00:04]} 49. Rb7 {[%clk 0:00:04]}  Ra2+ {[%clk 0:00:04]} 50. Kg3 {[%clk 0:00:04]}  Kf6 {[%clk 0:00:04]} 51. g5+ {[%clk 0:00:03]}  hxg5 {[%clk 0:00:04]} 52. hxg5+ {[%clk 0:00:04]}  Kg6 {[%clk 0:00:04]} 53. Ng4 {[%clk 0:00:03]}  Ra3+ {[%clk 0:00:03]} 54. Kf2 {[%clk 0:00:04]}  Ra2+ {[%clk 0:00:03]} 55. Ke3 {[%clk 0:00:04]}  Nf5+ {[%clk 0:00:03]} 56. Kf4 {[%clk 0:00:03]}  Ra4+ {[%clk 0:00:04]} 57. Kf3 {[%clk 0:00:03]}  Bd5+ {[%clk 0:00:04]} 58. Ke2 {[%clk 0:00:03]}  Bxb7 {[%clk 0:00:05]} 59. Ne5+ {[%clk 0:00:04]}  Kxg5 {[%clk 0:00:06]} 60. Nf7+ {[%clk 0:00:04]}  Kf6 {[%clk 0:00:05]} 61. Nd6 {[%clk 0:00:05]}  Ra2+ {[%clk 0:00:05]} 62. Kd3 {[%clk 0:00:05]}  Bd5 {[%clk 0:00:06]} 63. Nb5 {[%clk 0:00:05]}  Ke5 {[%clk 0:00:06]} 64. Nc3 {[%clk 0:00:05]}  Ra3 {[%clk 0:00:07]} 65. Kc2 {[%clk 0:00:06]}  Nd6 {[%clk 0:00:07]} 66. Ne2 {[%clk 0:00:06]}  Be4+ {[%clk 0:00:07]} 67. Kd2 {[%clk 0:00:06]}  Nc4+ {[%clk 0:00:08]} 68. Kc1 {[%clk 0:00:05]}  Ra1# {[%clk 0:00:08]} 0-1


[Site "https://www.chess.com"]

[Event "Titled Tuesday Blitz June 21 Early 2022"]
[White "Malyi, Viacheslav"]
[Black "Deviprasath, Sharvesh"]
[WhiteFideId "14123983"]
[BlackFideId "30938228"]
[WhiteElo "2270"]
[BlackElo "2102"]
[Result "1-0"]
[Round "10"]
[TimeControl "180+1"]
[Date "2022.06.22"]
[WhiteClock "0:02:05"]
[BlackClock "0:02:04"]

1. e4 {[%clk 0:03:00]}  c5 {[%clk 0:02:46]} 2. Nf3 {[%clk 0:02:59]}  d6 {[%clk 0:02:46]} 3. d4 {[%clk 0:02:59]}  cxd4 {[%clk 0:02:47]} 4. Qxd4 {[%clk 0:02:56]}  Nf6 {[%clk 0:02:48]} 5. Bg5 {[%clk 0:02:54]}  Nc6 {[%clk 0:02:49]} 6. Bb5 {[%clk 0:02:53]}  Bd7 {[%clk 0:02:49]} 7. Bxc6 {[%clk 0:02:53]}  Bxc6 {[%clk 0:02:50]} 8. Nc3 {[%clk 0:02:53]}  e6 {[%clk 0:02:51]} 9. O-O-O {[%clk 0:02:52]}  Be7 {[%clk 0:02:51]} 10. Qd3 {[%clk 0:02:52]}  Qa5 {[%clk 0:02:51]} 11. Kb1 {[%clk 0:02:45]}  Qa6 {[%clk 0:02:51]} 12. Qxa6 {[%clk 0:02:41]}  bxa6 {[%clk 0:02:52]} 13. Rhe1 {[%clk 0:02:40]}  O-O {[%clk 0:02:51]} 14. Nd4 {[%clk 0:02:39]}  Bb7 {[%clk 0:02:44]} 15. Nb3 {[%clk 0:02:38]}  Rac8 {[%clk 0:02:42]} 16. f3 {[%clk 0:02:38]}  h6 {[%clk 0:02:42]} 17. Be3 {[%clk 0:02:37]}  d5 {[%clk 0:02:41]} 18. Bxa7 {[%clk 0:02:34]}  a5 {[%clk 0:02:32]} 19. e5 {[%clk 0:02:29]}  Nd7 {[%clk 0:02:30]} 20. Nxa5 {[%clk 0:02:15]}  Ba6 {[%clk 0:02:07]} 21. Nb3 {[%clk 0:02:09]}  Nxe5 {[%clk 0:02:04]} 22. Rxe5 {[%clk 0:02:05]} 1-0


[Site "https://www.chess.com"]